[Event "*** Titled Tuesday 3|2 Blitz"]
[Site "Chess.com"]
[Date "2017.05.02"]
[Round "7"]
[White "biostatistician"]
[Black "hermionegrangermagic"]
[Result "1-0"]
[WhiteElo "2416"]
[BlackElo "2282"]
[TimeControl "180+2"]
[EndTime "14:35:53 PDT"]
[Termination "biostatistician won by resignation"]

1. d4 {[%clk 0:02:58.8]} 1... d5 {[%clk 0:03:00.3]} 2. Nf3 {[%clk 0:02:58.1]}
2... Nf6 {[%clk 0:02:56.7]} 3. c4 {[%clk 0:02:57.9]} 3... e6 {[%clk 0:02:41.4]}
4. Bg5 {[%clk 0:02:57.7]} 4... Be7 {[%clk 0:02:40.8]} 5. e3 {[%clk 0:02:57.8]}
5... O-O {[%clk 0:02:31.4]} 6. Nc3 {[%clk 0:02:57.7]} 6... h6 {[%clk 0:02:28.5]}
7. Bh4 {[%clk 0:02:58.3]} 7... Ne4 {[%clk 0:02:29.1]} 8. Bxe7 {[%clk 0:02:58.2]}
8... Qxe7 {[%clk 0:02:29.7]} 9. Rc1 {[%clk 0:02:59.7]} 9... Nxc3 {[%clk
0:02:28.4]} 10. Rxc3 {[%clk 0:03:01.6]} 10... c6 {[%clk 0:02:29.5]} 11. Bd3
{[%clk 0:03:01.3]} 11... Nd7 {[%clk 0:02:18.8]} 12. O-O {[%clk 0:03:01.3]} 12...
f5 {[%clk 0:02:12.5]} 13. Qc2 {[%clk 0:02:59.1]} 13... Nf6 {[%clk 0:02:07.1]}
14. Ne5 {[%clk 0:02:57]} 14... Qe8 {[%clk 0:01:46.7]} 15. f3 {[%clk 0:02:53.5]}
15... Nd7 {[%clk 0:01:42.5]} 16. Nxd7 {[%clk 0:02:49.1]} 16... Bxd7 {[%clk
0:01:39.5]} 17. f4 {[%clk 0:02:51]} 17... g5 {[%clk 0:01:30.2]} 18. b4 {[%clk
0:02:51.4]} 18... g4 {[%clk 0:01:29.2]} 19. a4 {[%clk 0:02:47.4]} 19... h5
{[%clk 0:01:25.6]} 20. c5 {[%clk 0:02:46.5]} 20... a6 {[%clk 0:01:08.9]} 21. Rb1
{[%clk 0:02:44.4]} 21... h4 {[%clk 0:01:01.5]} 22. Rcb3 {[%clk 0:02:43.2]} 22...
Qd8 {[%clk 0:00:37]} 23. Qb2 {[%clk 0:02:32.4]} 23... b5 {[%clk 0:00:31.4]} 24.
cxb6 {[%clk 0:02:10.8]} 24... Qxb6 {[%clk 0:00:31.3]} 25. a5 {[%clk 0:02:11]}
25... Qc7 {[%clk 0:00:29.2]} 26. Qe2 {[%clk 0:02:10.1]} 26... Qc8 {[%clk
0:00:20.5]} 27. Rc1 {[%clk 0:02:10]} 27... h3 {[%clk 0:00:16.3]} 28. gxh3 {[%clk
0:02:05.4]} 28... Rf7 {[%clk 0:00:17]} 29. hxg4 {[%clk 0:02:04.6]} 29... Rg7
{[%clk 0:00:18.1]} 30. g5 {[%clk 0:02:05.3]} 30... Qe8 {[%clk 0:00:16.1]} 31. h4
{[%clk 0:01:59.3]} 31... Rh7 {[%clk 0:00:16.6]} 32. Qf2 {[%clk 0:01:54.7]} 32...
Qh5 {[%clk 0:00:16.6]} 33. Be2 {[%clk 0:01:55.7]} 33... Qxh4 {[%clk 0:00:17.5]}
34. Qxh4 {[%clk 0:01:57.6]} 34... Rxh4 {[%clk 0:00:19.2]} 35. Kg2 {[%clk
0:01:58.4]} 35... Kg7 {[%clk 0:00:20.4]} 36. Rh1 {[%clk 0:01:58.9]} 36... Rxh1
{[%clk 0:00:20.5]} 37. Kxh1 {[%clk 0:02:00.8]} 37... Rh8+ {[%clk 0:00:16.5]} 38.
Kg2 {[%clk 0:02:01.3]} 38... Bc8 {[%clk 0:00:17.5]} 39. Rc3 {[%clk 0:02:00.6]}
39... Bb7 {[%clk 0:00:18.2]} 40. Bd3 {[%clk 0:01:58.4]} 40... Rh4 {[%clk
0:00:17.2]} 41. Rc1 {[%clk 0:01:58.7]} 41... Rg4+ {[%clk 0:00:18.2]} 42. Kf2
{[%clk 0:01:59.7]} 42... Rh4 {[%clk 0:00:19.3]} 43. Bf1 {[%clk 0:01:51.4]} 43...
Rh2+ {[%clk 0:00:19.4]} 44. Bg2 {[%clk 0:01:52.2]} 44... Rh8 {[%clk 0:00:19.9]}
45. Kg3 {[%clk 0:01:53.1]} 45... Rb8 {[%clk 0:00:20.1]} 46. Rb1 {[%clk
0:01:49.6]} 46... Bc8 {[%clk 0:00:19.8]} 47. Bf3 {[%clk 0:01:49.2]} 47... Bb7
{[%clk 0:00:20.5]} 48. Be2 {[%clk 0:01:48.6]} 48... Bc8 {[%clk 0:00:20.9]} 49.
Bd3 {[%clk 0:01:37.2]} 49... Bb7 {[%clk 0:00:21.5]} 50. Rc1 {[%clk 0:01:34.9]}
50... Rh8 {[%clk 0:00:20.1]} 51. Bxa6 {[%clk 0:01:22.3]} 51... Bxa6 {[%clk
0:00:20]} 52. Rxc6 {[%clk 0:01:23.8]} 52... Bf1 {[%clk 0:00:17.8]} 53. Rxe6
{[%clk 0:01:22.3]} 53... Rh3+ {[%clk 0:00:18.2]} 54. Kf2 {[%clk 0:01:22.6]}
54... Bd3 {[%clk 0:00:18.8]} 55. Kg2 {[%clk 0:01:10.2]} 55... Rh8 {[%clk
0:00:16.5]} 56. Rb6 {[%clk 0:01:09.5]} 56... Be4+ {[%clk 0:00:17.3]} 57. Kf2
{[%clk 0:01:10]} 57... Rh2+ {[%clk 0:00:17.2]} 58. Ke1 {[%clk 0:01:11]} 58...
Bf3 {[%clk 0:00:14.4]} 59. a6 {[%clk 0:01:08.4]} 59... Re2+ {[%clk 0:00:15.2]}
60. Kf1 {[%clk 0:01:09.6]} 60... Rd2 {[%clk 0:00:15.8]} 61. b5 {[%clk
0:01:05.7]} 61... Ra2 {[%clk 0:00:08]} 62. Rb7+ {[%clk 0:01:04.7]} 62... Kg6
{[%clk 0:00:09.1]} 63. a7 {[%clk 0:01:05.9]} 63... Kh5 {[%clk 0:00:09.6]} 64. b6
{[%clk 0:00:52.7]} 64... Kg4 {[%clk 0:00:09.4]} 65. Rb8 {[%clk 0:00:51.7]} 65...
Rb2 {[%clk 0:00:05.7]} 66. a8=Q {[%clk 0:00:47.7]} 66... Rb1+ {[%clk 0:00:05.1]}
67. Kf2 {[%clk 0:00:48.8]} 67... Rb2+ {[%clk 0:00:06.4]} 68. Ke1 {[%clk
0:00:50.1]} 68... Re2+ {[%clk 0:00:05.9]} 69. Kd1 {[%clk 0:00:48.4]} 69... Ra2+
{[%clk 0:00:06.2]} 1-0

[Event "*** Titled Tuesday 3|2 Blitz"]
[Site "Chess.com"]
[Date "2017.05.02"]
[Round "7"]
[White "Olkaa"]
[Black "FearlessKing64"]
[Result "0-1"]
[WhiteElo "2454"]
[BlackElo "2171"]
[TimeControl "180+2"]
[EndTime "14:36:31 PDT"]
[Termination "FearlessKing64 won by resignation"]

1. e4 {[%clk 0:03:01.6]} 1... c5 {[%clk 0:03:00.4]} 2. Nf3 {[%clk 0:03:02.5]}
2... d6 {[%clk 0:03:01.5]} 3. d4 {[%clk 0:02:58]} 3... cxd4 {[%clk 0:03:03.4]}
4. Nxd4 {[%clk 0:02:59.7]} 4... Nf6 {[%clk 0:03:04.9]} 5. Nc3 {[%clk 0:03:01.2]}
5... a6 {[%clk 0:03:06.3]} 6. Be3 {[%clk 0:03:02.8]} 6... e5 {[%clk 0:03:07.4]}
7. Nb3 {[%clk 0:03:03.7]} 7... Be6 {[%clk 0:03:09]} 8. f3 {[%clk 0:03:04.6]}
8... Be7 {[%clk 0:03:10.3]} 9. Qd2 {[%clk 0:03:05.5]} 9... O-O {[%clk
0:03:11.2]} 10. O-O-O {[%clk 0:03:07.1]} 10... Nbd7 {[%clk 0:03:12.8]} 11. g4
{[%clk 0:03:08.1]} 11... b5 {[%clk 0:03:14.4]} 12. g5 {[%clk 0:03:09.4]} 12...
b4 {[%clk 0:03:15.7]} 13. gxf6 {[%clk 0:03:10.7]} 13... bxc3 {[%clk 0:03:15]}
14. Qxc3 {[%clk 0:03:12.6]} 14... Nxf6 {[%clk 0:03:12.7]} 15. Na5 {[%clk
0:03:13.5]} 15... Rc8 {[%clk 0:02:59.8]} 16. Nc6 {[%clk 0:03:13.7]} 16... Qd7
{[%clk 0:02:50.3]} 17. Nxe7+ {[%clk 0:03:14.2]} 17... Qxe7 {[%clk 0:02:52.2]}
18. Qa5 {[%clk 0:03:15.1]} 18... Nh5 {[%clk 0:02:35.7]} 19. Kb1 {[%clk
0:03:09.5]} 19... Rc6 {[%clk 0:02:24.1]} 20. Rg1 {[%clk 0:03:09.2]} 20... Qh4
{[%clk 0:02:10.6]} 21. Bg5 {[%clk 0:02:38.1]} 21... Qf2 {[%clk 0:02:01.9]} 22.
Bd3 {[%clk 0:02:37.4]} 22... Rfc8 {[%clk 0:01:39.8]} 23. Rdf1 {[%clk 0:02:31.4]}
23... Qd4 {[%clk 0:01:03.2]} 24. Bc1 {[%clk 0:01:51.7]} 24... g6 {[%clk
0:00:50.4]} 25. b3 {[%clk 0:01:46.3]} 25... Nf4 {[%clk 0:00:37.3]} 26. Bxf4
{[%clk 0:01:24.8]} 26... exf4 {[%clk 0:00:39.2]} 27. Qd2 {[%clk 0:01:20.8]}
27... Rc3 {[%clk 0:00:36.8]} 28. Rd1 {[%clk 0:01:14.9]} 28... Qb6 {[%clk
0:00:32.4]} 29. Kb2 {[%clk 0:01:07.8]} 29... a5 {[%clk 0:00:33.3]} 30. Qxc3
{[%clk 0:01:04.5]} 30... Rxc3 {[%clk 0:00:33.5]} 31. Kxc3 {[%clk 0:01:06.4]}
31... Qb4+ {[%clk 0:00:30.3]} 32. Kb2 {[%clk 0:01:06.5]} 32... a4 {[%clk
0:00:31.6]} 33. c3 {[%clk 0:01:01.5]} 33... a3+ {[%clk 0:00:28.5]} 34. Kc2
{[%clk 0:01:00.3]} 34... Qb6 {[%clk 0:00:29.8]} 35. Rgf1 {[%clk 0:00:57.2]}
35... d5 {[%clk 0:00:23.9]} 36. exd5 {[%clk 0:00:36.5]} 36... Bxd5 {[%clk
0:00:25]} 37. Rde1 {[%clk 0:00:37.5]} 37... Qf6 {[%clk 0:00:17.2]} 38. Re2
{[%clk 0:00:35.7]} 38... Kg7 {[%clk 0:00:18]} 39. Be4 {[%clk 0:00:33.4]} 39...
Be6 {[%clk 0:00:17.5]} 40. Rd2 {[%clk 0:00:32.7]} 40... h5 {[%clk 0:00:16.8]}
41. Rg1 {[%clk 0:00:31.1]} 41... Qh4 {[%clk 0:00:16.6]} 42. Rgg2 {[%clk
0:00:25.9]} 42... Qe1 {[%clk 0:00:15.5]} 43. Rd1 {[%clk 0:00:26.6]} 43... Qe3
{[%clk 0:00:15]} 44. Rgd2 {[%clk 0:00:26.4]} 44... g5 {[%clk 0:00:12.9]} 45. Bc6
{[%clk 0:00:23.3]} 45... Bf5+ {[%clk 0:00:12]} 46. Be4 {[%clk 0:00:23]} 46...
Bxe4+ {[%clk 0:00:12.9]} 47. fxe4 {[%clk 0:00:24]} 47... Qxe4+ {[%clk
0:00:14.5]} 48. Kc1 {[%clk 0:00:24.6]} 48... f3 {[%clk 0:00:15.3]} 49. Rf1
{[%clk 0:00:14.9]} 49... g4 {[%clk 0:00:15.1]} 50. b4 {[%clk 0:00:13.8]} 50...
Qe3 {[%clk 0:00:15.6]} 51. Kc2 {[%clk 0:00:13.2]} 51... h4 {[%clk 0:00:16.1]}
52. Rdf2 {[%clk 0:00:12.4]} 52... f5 {[%clk 0:00:16.5]} 53. b5 {[%clk
0:00:11.6]} 53... Qe4+ {[%clk 0:00:15.1]} 54. Kb3 {[%clk 0:00:12.1]} 54... Qd5+
{[%clk 0:00:15.6]} 55. c4 {[%clk 0:00:12.7]} 55... Qd3+ {[%clk 0:00:15.5]} 56.
Kb4 {[%clk 0:00:13.4]} 56... Qd6+ {[%clk 0:00:15.3]} 57. Kb3 {[%clk 0:00:11.3]}
57... Qc5 {[%clk 0:00:16.1]} 58. Kc3 {[%clk 0:00:09.4]} 58... Kg6 {[%clk
0:00:16.4]} 59. Kb3 {[%clk 0:00:10.6]} 59... Kg5 {[%clk 0:00:17.1]} 60. Kc3
{[%clk 0:00:11.7]} 60... Kf4 {[%clk 0:00:17.1]} 61. Kb3 {[%clk 0:00:12.5]} 61...
Qe3+ {[%clk 0:00:18]} 62. Kb4 {[%clk 0:00:13.3]} 62... g3 {[%clk 0:00:19.2]} 63.
hxg3+ {[%clk 0:00:14]} 63... hxg3 {[%clk 0:00:20.1]} 64. Rxf3+ {[%clk
0:00:14.4]} 64... Qxf3 {[%clk 0:00:21.3]} 65. Rxf3+ {[%clk 0:00:16.2]} 65...
Kxf3 {[%clk 0:00:23]} 66. b6 {[%clk 0:00:16.8]} 66... g2 {[%clk 0:00:24.5]} 67.
b7 {[%clk 0:00:17.4]} 67... g1=Q {[%clk 0:00:25.9]} 68. Ka5 {[%clk 0:00:18.7]}
68... Qb1 {[%clk 0:00:27]} 69. Ka6 {[%clk 0:00:18.7]} 69... Ke4 {[%clk 0:00:25]}
70. c5 {[%clk 0:00:18.2]} 70... Kd5 {[%clk 0:00:26]} 0-1

[Event "*** Titled Tuesday 3|2 Blitz"]
[Site "Chess.com"]
[Date "2017.05.02"]
[Round "7"]
[White "MagnusCarlsen"]
[Black "GMBenjaminBok"]
[Result "1/2-1/2"]
[WhiteElo "2974"]
[BlackElo "2677"]
[TimeControl "180+2"]
[EndTime "14:37:20 PDT"]
[Termination "Game drawn by agreement"]

1. b3 {[%clk 0:03:00.8]} 1... d5 {[%clk 0:02:58.8]} 2. Bb2 {[%clk 0:03:01.3]}
2... Bg4 {[%clk 0:02:59.7]} 3. g3 {[%clk 0:02:56.3]} 3... e6 {[%clk 0:02:58.7]}
4. Bg2 {[%clk 0:02:57.5]} 4... Nf6 {[%clk 0:02:59.8]} 5. Nf3 {[%clk 0:02:57.9]}
5... Nbd7 {[%clk 0:03:00.1]} 6. c4 {[%clk 0:02:58.1]} 6... c6 {[%clk 0:03:00.4]}
7. O-O {[%clk 0:02:56.7]} 7... Bd6 {[%clk 0:03:01]} 8. d3 {[%clk 0:02:44.7]}
8... O-O {[%clk 0:03:01.9]} 9. Nbd2 {[%clk 0:02:45.3]} 9... Qe7 {[%clk
0:03:03.1]} 10. h3 {[%clk 0:02:42.2]} 10... Bh5 {[%clk 0:03:03.3]} 11. a3 {[%clk
0:02:41.5]} 11... a5 {[%clk 0:03:03.5]} 12. Re1 {[%clk 0:02:41.2]} 12... Rfe8
{[%clk 0:03:02.6]} 13. Qc2 {[%clk 0:02:39.3]} 13... h6 {[%clk 0:02:32.3]} 14. e4
{[%clk 0:02:19.2]} 14... dxe4 {[%clk 0:02:28.5]} 15. Nxe4 {[%clk 0:02:20.3]}
15... Nxe4 {[%clk 0:02:26.9]} 16. Rxe4 {[%clk 0:02:21.4]} 16... Bg6 {[%clk
0:02:17.2]} 17. Re3 {[%clk 0:02:22.1]} 17... Bc5 {[%clk 0:02:04.3]} 18. Qc3
{[%clk 0:02:21.3]} 18... Qf6 {[%clk 0:01:54.5]} 19. d4 {[%clk 0:02:20.1]} 19...
Bf8 {[%clk 0:01:55.2]} 20. Rae1 {[%clk 0:02:16.2]} 20... Bh5 {[%clk 0:01:48.5]}
21. Qd2 {[%clk 0:02:08.3]} 21... Bxf3 {[%clk 0:01:44.8]} 22. Bxf3 {[%clk
0:02:04.7]} 22... Qd8 {[%clk 0:01:42.7]} 23. d5 {[%clk 0:02:04.3]} 23... cxd5
{[%clk 0:01:42.6]} 24. cxd5 {[%clk 0:02:05.3]} 24... Nb6 {[%clk 0:01:40.5]} 25.
Qd1 {[%clk 0:01:57.8]} 25... Bc5 {[%clk 0:01:05.9]} 26. R3e2 {[%clk 0:01:33.7]}
26... Qg5 {[%clk 0:00:48.4]} 27. Kg2 {[%clk 0:01:25.8]} 27... Red8 {[%clk
0:00:39.8]} 28. Re5 {[%clk 0:01:16]} 28... Qg6 {[%clk 0:00:32.2]} 29. Qc1 {[%clk
0:00:42.5]} 29... Rac8 {[%clk 0:00:30.5]} 30. Qf4 {[%clk 0:00:24.1]} 30... Nxd5
{[%clk 0:00:24.2]} 31. Bxd5 {[%clk 0:00:23.6]} 31... exd5 {[%clk 0:00:22.7]} 32.
Qf3 {[%clk 0:00:24.9]} 32... b6 {[%clk 0:00:18.3]} 33. Rxd5 {[%clk 0:00:22.2]}
33... Rxd5 {[%clk 0:00:19.3]} 34. Qxd5 {[%clk 0:00:24.1]} 34... Qc2 {[%clk
0:00:18.9]} 35. Bd4 {[%clk 0:00:18.7]} 35... Bxd4 {[%clk 0:00:14.4]} 36. Qxd4
{[%clk 0:00:20.6]} 36... Qxb3 {[%clk 0:00:15.6]} 37. Re3 {[%clk 0:00:21.6]}
37... Qb5 {[%clk 0:00:15.2]} 38. h4 {[%clk 0:00:21.8]} 38... Qc6+ {[%clk
0:00:16]} 39. Kh2 {[%clk 0:00:22.8]} 39... b5 {[%clk 0:00:15.7]} 40. Re5 {[%clk
0:00:23.4]} 40... Qb7 {[%clk 0:00:12.5]} 41. Qd3 {[%clk 0:00:22]} 41... b4
{[%clk 0:00:11.9]} 42. Rxa5 {[%clk 0:00:23.2]} 42... bxa3 {[%clk 0:00:11]} 43.
Rxa3 {[%clk 0:00:24.5]} 43... Qb6 {[%clk 0:00:11.8]} 44. Ra2 {[%clk 0:00:25.1]}
44... Qc6 {[%clk 0:00:12.4]} 45. Rd2 {[%clk 0:00:25.2]} 45... Qe6 {[%clk
0:00:12.6]} 46. Qf3 {[%clk 0:00:25.9]} 46... Qf6 {[%clk 0:00:11.5]} 47. Qe4
{[%clk 0:00:25.1]} 47... Qe6 {[%clk 0:00:11.4]} 48. Qxe6 {[%clk 0:00:26.1]}
48... fxe6 {[%clk 0:00:12.1]} 49. Rd7 {[%clk 0:00:28]} 49... Rf8 {[%clk
0:00:11.7]} 50. Kg2 {[%clk 0:00:29.3]} 50... Rf5 {[%clk 0:00:12.4]} 51. Re7
{[%clk 0:00:30.1]} 51... Rf6 {[%clk 0:00:13.1]} 52. g4 {[%clk 0:00:31.6]} 52...
Kf8 {[%clk 0:00:13.9]} 53. Rb7 {[%clk 0:00:32.2]} 53... Rf4 {[%clk 0:00:14.9]}
54. Kg3 {[%clk 0:00:33.4]} 54... Rd4 {[%clk 0:00:15.9]} 55. f3 {[%clk
0:00:33.5]} 55... Rc4 {[%clk 0:00:16.7]} 56. Kf2 {[%clk 0:00:34.5]} 56... Rc3
{[%clk 0:00:17]} 57. Ke2 {[%clk 0:00:35.8]} 57... Ra3 {[%clk 0:00:17.7]} 58. Rd7
{[%clk 0:00:32.7]} 58... Rb3 {[%clk 0:00:17.9]} 59. Rd3 {[%clk 0:00:33.3]} 59...
Rb2+ {[%clk 0:00:18.7]} 60. Ke3 {[%clk 0:00:34.4]} 60... Kf7 {[%clk 0:00:20]}
61. Ra3 {[%clk 0:00:34.9]} 61... Kf6 {[%clk 0:00:20.7]} 62. Ra4 {[%clk
0:00:35.4]} 62... Rh2 {[%clk 0:00:19.7]} 63. Rf4+ {[%clk 0:00:33.3]} 63... Ke7
{[%clk 0:00:19.5]} 64. h5 {[%clk 0:00:34.5]} 64... Ra2 {[%clk 0:00:19]} 65. Rb4
{[%clk 0:00:35.6]} 65... Kf6 {[%clk 0:00:19.1]} 66. Kf4 {[%clk 0:00:36.5]} 66...
Rc2 {[%clk 0:00:19.1]} 67. Rb8 {[%clk 0:00:37.3]} 67... Rc4+ {[%clk 0:00:19.7]}
68. Kg3 {[%clk 0:00:38.6]} 68... Kf7 {[%clk 0:00:18.7]} 69. Rb3 {[%clk 0:00:37]}
69... Kf6 {[%clk 0:00:18.1]} 70. f4 {[%clk 0:00:38.4]} 70... Rd4 {[%clk
0:00:18]} 71. Rb5 {[%clk 0:00:35.9]} 71... Rd3+ {[%clk 0:00:17.9]} 72. Kf2
{[%clk 0:00:37.3]} 72... Rh3 {[%clk 0:00:14.2]} 73. Kg2 {[%clk 0:00:36.2]} 73...
Rd3 {[%clk 0:00:14.4]} 74. g5+ {[%clk 0:00:37.5]} 74... hxg5 {[%clk 0:00:14.8]}
75. fxg5+ {[%clk 0:00:39.4]} 75... Kf7 {[%clk 0:00:14.7]} 76. Rb7+ {[%clk
0:00:40.5]} 76... Kf8 {[%clk 0:00:15]} 77. Rb8+ {[%clk 0:00:35.1]} 77... Kf7
{[%clk 0:00:14.5]} 78. Rb5 {[%clk 0:00:36.3]} 78... Rc3 {[%clk 0:00:12.6]} 79.
Rb7+ {[%clk 0:00:34.9]} 79... Kf8 {[%clk 0:00:13.4]} 80. Rb8+ {[%clk 0:00:34.6]}
80... Kf7 {[%clk 0:00:13.9]} 81. Rb7+ {[%clk 0:00:31.3]} 81... Kf8 {[%clk
0:00:14.8]} 82. g6 {[%clk 0:00:32.6]} 82... Rc5 {[%clk 0:00:13.9]} 83. Rf7+
{[%clk 0:00:33]} 83... Kg8 {[%clk 0:00:13.9]} 84. Re7 {[%clk 0:00:34.3]} 84...
Kf8 {[%clk 0:00:14.8]} 85. Rxe6 {[%clk 0:00:35]} 85... Rxh5 {[%clk 0:00:14.9]}
86. Kf3 {[%clk 0:00:35.9]} 86... Rh4 {[%clk 0:00:15]} 87. Ke3 {[%clk 0:00:34]}
87... Rg4 {[%clk 0:00:15.1]} 88. Kf3 {[%clk 0:00:34]} 88... Ra4 {[%clk 0:00:15]}
89. Ke3 {[%clk 0:00:35.3]} 89... Rb4 {[%clk 0:00:15.4]} 1/2-1/2

[Event "*** Titled Tuesday 3|2 Blitz"]
[Site "Chess.com"]
[Date "2017.05.02"]
[Round "7"]
[White "Vrolijk"]
[Black "Spartakus1975"]
[Result "1/2-1/2"]
[WhiteElo "2351"]
[BlackElo "2601"]
[TimeControl "180+2"]
[EndTime "14:37:40 PDT"]
[Termination "Game drawn - insufficient material"]

1. d4 {[%clk 0:03:02]} 1... d5 {[%clk 0:02:58.4]} 2. c4 {[%clk 0:03:00.1]} 2...
c6 {[%clk 0:02:59.5]} 3. Nf3 {[%clk 0:03:00.2]} 3... Nf6 {[%clk 0:03:00.6]} 4.
e3 {[%clk 0:03:01.3]} 4... a6 {[%clk 0:03:00.9]} 5. Nc3 {[%clk 0:02:59.3]} 5...
Bf5 {[%clk 0:03:00.4]} 6. Ne5 {[%clk 0:02:54.4]} 6... Nbd7 {[%clk 0:02:50.3]} 7.
Qb3 {[%clk 0:02:54.9]} 7... Qb6 {[%clk 0:02:40.2]} 8. Nxd7 {[%clk 0:02:44]} 8...
Nxd7 {[%clk 0:02:37.7]} 9. cxd5 {[%clk 0:02:44.9]} 9... cxd5 {[%clk 0:02:38.1]}
10. Nxd5 {[%clk 0:02:40.6]} 10... Qxb3 {[%clk 0:02:39]} 11. axb3 {[%clk
0:02:42.5]} 11... Rc8 {[%clk 0:02:39.7]} 12. Bd2 {[%clk 0:02:41.8]} 12... e5
{[%clk 0:02:37.3]} 13. dxe5 {[%clk 0:02:22.6]} 13... Nxe5 {[%clk 0:02:34]} 14.
Bc3 {[%clk 0:02:21.9]} 14... Nd3+ {[%clk 0:02:26.1]} 15. Bxd3 {[%clk 0:02:21.6]}
15... Bxd3 {[%clk 0:02:26.4]} 16. f3 {[%clk 0:02:06.1]} 16... Bc2 {[%clk
0:02:13.6]} 17. b4 {[%clk 0:02:04.5]} 17... f6 {[%clk 0:02:08.2]} 18. Kf2 {[%clk
0:01:46.4]} 18... Kf7 {[%clk 0:02:05.9]} 19. Rhc1 {[%clk 0:01:41]} 19... Bb3
{[%clk 0:02:06.2]} 20. e4 {[%clk 0:01:30.3]} 20... Bd6 {[%clk 0:02:06.8]} 21.
Ne3 {[%clk 0:01:29.4]} 21... Rhd8 {[%clk 0:01:53.7]} 22. g3 {[%clk 0:01:26.2]}
22... Bc7 {[%clk 0:01:48.4]} 23. Kg2 {[%clk 0:01:14.9]} 23... Bb6 {[%clk
0:01:48.7]} 24. Re1 {[%clk 0:01:08.2]} 24... Rd3 {[%clk 0:01:44.7]} 25. Ng4
{[%clk 0:00:56.3]} 25... h5 {[%clk 0:01:26.1]} 26. Nf2 {[%clk 0:00:55.6]} 26...
Rd7 {[%clk 0:01:26.7]} 27. Ra3 {[%clk 0:00:44.9]} 27... Be6 {[%clk 0:01:21.7]}
28. Rd1 {[%clk 0:00:45.1]} 28... Rcd8 {[%clk 0:01:16.9]} 29. Raa1 {[%clk
0:00:44.3]} 29... Bb3 {[%clk 0:01:17.2]} 30. Rxd7+ {[%clk 0:00:42.8]} 30... Rxd7
{[%clk 0:01:18.7]} 31. Re1 {[%clk 0:00:42.4]} 31... g5 {[%clk 0:01:07.6]} 32.
Re2 {[%clk 0:00:38]} 32... Ke6 {[%clk 0:01:03.8]} 33. Rd2 {[%clk 0:00:37]} 33...
Rxd2 {[%clk 0:01:04.5]} 34. Bxd2 {[%clk 0:00:38.9]} 34... Bc2 {[%clk 0:01:06.1]}
35. Kf1 {[%clk 0:00:35.8]} 35... Ba4 {[%clk 0:00:56.9]} 36. Ke2 {[%clk
0:00:31.1]} 36... Bb5+ {[%clk 0:00:57.3]} 37. Ke1 {[%clk 0:00:32.5]} 37... Bc4
{[%clk 0:00:52.7]} 38. Bc3 {[%clk 0:00:33.3]} 38... Be3 {[%clk 0:00:52]} 39. Bd2
{[%clk 0:00:33.1]} 39... Bb6 {[%clk 0:00:50.3]} 40. Bc3 {[%clk 0:00:34.1]} 40...
Ba7 {[%clk 0:00:51.4]} 41. Bd2 {[%clk 0:00:34.3]} 41... Bb5 {[%clk 0:00:36.7]}
42. Bc3 {[%clk 0:00:34.1]} 42... Bb6 {[%clk 0:00:34.4]} 43. Bd2 {[%clk 0:00:33]}
43... Bc7 {[%clk 0:00:35.5]} 44. Be3 {[%clk 0:00:28.1]} 44... Be5 {[%clk
0:00:34]} 45. Nd1 {[%clk 0:00:27.7]} 45... Bd6 {[%clk 0:00:21.1]} 46. Bc5 {[%clk
0:00:28.2]} 46... Be5 {[%clk 0:00:19]} 47. Kf2 {[%clk 0:00:29.3]} 47... h4
{[%clk 0:00:18.3]} 48. Nc3 {[%clk 0:00:29.8]} 48... Bc4 {[%clk 0:00:17.6]} 49.
Be3 {[%clk 0:00:27]} 49... h3 {[%clk 0:00:17.3]} 50. f4 {[%clk 0:00:27.5]} 50...
gxf4 {[%clk 0:00:18.6]} 51. gxf4 {[%clk 0:00:29.4]} 51... Bd6 {[%clk 0:00:20.1]}
52. f5+ {[%clk 0:00:26.4]} 52... Kf7 {[%clk 0:00:18.3]} 53. Kg1 {[%clk
0:00:17.9]} 53... Bxb4 {[%clk 0:00:18]} 54. Nd1 {[%clk 0:00:14.7]} 54... Bd6
{[%clk 0:00:14.2]} 55. Nf2 {[%clk 0:00:15.7]} 55... Be5 {[%clk 0:00:13.7]} 56.
b4 {[%clk 0:00:13.8]} 56... Bc3 {[%clk 0:00:09.8]} 57. Bc5 {[%clk 0:00:14.4]}
57... b6 {[%clk 0:00:11.1]} 58. Bxb6 {[%clk 0:00:15.3]} 58... Bxb4 {[%clk
0:00:12.6]} 59. Nxh3 {[%clk 0:00:17.2]} 59... a5 {[%clk 0:00:14.2]} 60. Bd4
{[%clk 0:00:17.2]} 60... a4 {[%clk 0:00:15]} 61. Nf2 {[%clk 0:00:18.5]} 61... a3
{[%clk 0:00:15.6]} 62. Nd1 {[%clk 0:00:18.6]} 62... Bd2 {[%clk 0:00:14]} 63. Kf2
{[%clk 0:00:17.2]} 63... Bc1 {[%clk 0:00:14.7]} 64. e5 {[%clk 0:00:15.2]} 64...
fxe5 {[%clk 0:00:14.6]} 65. Bxe5 {[%clk 0:00:17.1]} 65... Bb3 {[%clk 0:00:16.2]}
66. Ke2 {[%clk 0:00:15.1]} 66... Bxd1+ {[%clk 0:00:16.4]} 67. Kxd1 {[%clk
0:00:17]} 67... Bb2 {[%clk 0:00:18]} 68. Bxb2 {[%clk 0:00:15.1]} 68... axb2
{[%clk 0:00:19.2]} 69. Kc2 {[%clk 0:00:16.7]} 69... Kf6 {[%clk 0:00:20.8]} 70.
Kxb2 {[%clk 0:00:17.7]} 70... Kxf5 {[%clk 0:00:22.5]} 71. Kc3 {[%clk 0:00:19.6]}
71... Kg4 {[%clk 0:00:24]} 72. Kb4 {[%clk 0:00:21.5]} 72... Kh3 {[%clk
0:00:25.6]} 73. Ka5 {[%clk 0:00:23.4]} 73... Kxh2 {[%clk 0:00:27.5]} 1/2-1/2

[Event "*** Titled Tuesday 3|2 Blitz"]
[Site "Chess.com"]
[Date "2017.05.02"]
[Round "8"]
[White "jcibarra"]
[Black "hypert"]
[Result "1-0"]
[WhiteElo "2640"]
[BlackElo "2304"]
[TimeControl "180+2"]
[EndTime "14:39:44 PDT"]
[Termination "jcibarra won by resignation"]

1. e4 {[%clk 0:03:02]} 1... c5 {[%clk 0:03:00.5]} 2. Nf3 {[%clk 0:03:03.2]} 2...
e6 {[%clk 0:03:02]} 3. d4 {[%clk 0:03:04.2]} 3... cxd4 {[%clk 0:03:03.9]} 4.
Nxd4 {[%clk 0:03:06.1]} 4... Nc6 {[%clk 0:03:05.6]} 5. Nc3 {[%clk 0:03:06.7]}
5... Qc7 {[%clk 0:03:07.2]} 6. g3 {[%clk 0:03:08.3]} 6... Nf6 {[%clk 0:03:07.3]}
7. Bg2 {[%clk 0:03:09.4]} 7... a6 {[%clk 0:03:09]} 8. O-O {[%clk 0:03:10.9]}
8... Nxd4 {[%clk 0:03:10.6]} 9. Qxd4 {[%clk 0:03:11.8]} 9... Bc5 {[%clk
0:03:12]} 10. Bf4 {[%clk 0:03:13.4]} 10... d6 {[%clk 0:03:13.5]} 11. Qd2 {[%clk
0:03:13.9]} 11... h6 {[%clk 0:03:15.1]} 12. Rad1 {[%clk 0:03:14.3]} 12... e5
{[%clk 0:03:16.1]} 13. Be3 {[%clk 0:03:16]} 13... Be6 {[%clk 0:03:17.3]} 14.
Bxc5 {[%clk 0:03:14.5]} 14... dxc5 {[%clk 0:03:19.2]} 15. Nd5 {[%clk 0:03:16.1]}
15... Bxd5 {[%clk 0:03:20]} 16. exd5 {[%clk 0:03:18]} 16... Qd6 {[%clk
0:03:21.4]} 17. f4 {[%clk 0:03:19.7]} 17... O-O {[%clk 0:03:22.9]} 18. fxe5
{[%clk 0:03:20.8]} 18... Qxe5 {[%clk 0:03:24.5]} 19. d6 {[%clk 0:03:22.7]} 19...
Qxb2 {[%clk 0:03:25]} 20. c4 {[%clk 0:03:24.4]} 20... Rad8 {[%clk 0:03:23.3]}
21. Qxb2 {[%clk 0:03:24.7]} 1-0